bitfinex-derivatives/quotes_ETHF0:USTF0_20260123
["timestamp","ask_amount","ask_price","bid_price","bid_amount"]
[1769134799243,0.00505817,2967.3,2966.2,0.42197291]
[1769134799443,0.82505189,2967.2,2966.2,0.42197291]
[1769134799641,0.82505189,2967.1,2966.2,0.42197291]
[1769134799837,0.82505189,2967.0,2966.2,0.42197291]
[1769134800042,0.00505817,2967.3,2966.2,0.42197291]
[1769134800236,0.82504926,2967.2,2966.2,0.42197291]
[1769134800438,0.82504926,2967.1,2966.2,0.42197291]
[1769134800639,0.82504926,2967.0,2966.2,0.42197291]
[1769134800846,0.00505817,2967.3,2966.2,0.42197291]
[1769134801050,0.82506055,2967.2,2966.2,0.42197291]
[1769134801246,0.82506055,2967.1,2966.2,0.42197291]
[1769134801547,0.82506055,2967.0,2966.2,0.42197291]
[1769134801748,0.00505817,2967.3,2966.2,0.42197291]
[1769134801947,0.82502785,2967.2,2966.2,0.42197291]
[1769134802138,0.00505817,2967.3,2966.2,0.42197291]
[1769134802343,0.82500367,2967.2,2966.2,0.42197291]
[1769134802647,0.00505817,2967.3,2966.2,0.42197291]
[1769134802948,0.82484169,2967.2,2966.2,0.42197291]
[1769134803137,0.82484169,2967.1,2966.0,2.41673297]
[1769134803341,0.00505817,2967.3,2966.0,2.41673297]
[1769134803542,0.82489289,2967.2,2966.0,2.41673297]
[1769134803741,0.82489289,2967.1,2965.9,2.41673297]
[1769134803946,0.82489289,2967.0,2965.9,2.41673297]
[1769134804148,0.43083453,2967.3,2965.9,2.41673297]
[1769134804347,0.82489576,2967.2,2965.9,2.41673297]
[1769134804539,0.82489576,2967.1,2965.9,2.41673297]
[1769134804743,0.82489576,2967.0,2965.9,2.41673297]
[1769134804942,0.43083453,2967.3,2965.9,2.41673297]
[1769134805144,0.82490404,2967.2,2965.9,2.41673297]
[1769134805350,0.82490404,2967.1,2965.9,2.41673297]
[1769134805551,0.82490404,2967.0,2965.9,2.41673297]
[1769134805744,0.43083453,2967.3,2965.9,2.41673297]
[1769134805945,0.43083453,2967.3,2966.2,2.41673297]
[1769134808649,0.43083453,2967.3,2966.3,2.41673297]
[1769134808853,0.43083453,2967.3,2966.2,2.41673297]
[1769134810056,0.43083453,2967.3,2966.3,2.41673297]
[1769134810958,0.43083453,2967.3,2966.2,2.41673297]
[1769134814760,0.43083453,2967.3,2966.3,2.41673297]
[1769134815459,0.43240931,2967.1,2965.9,2.41673297]
[1769134815661,0.43240931,2966.9,2965.8,2.41673297]
[1769134815863,0.82503063,2966.8,2965.6,2.41673297]
[1769134816158,0.43240931,2966.7,2965.5,2.41673297]
[1769134816461,0.43240931,2966.7,2965.4,2.42026585]
[1769134816963,1.32310548,2966.7,2965.4,2.42026585]
[1769134818367,1.32310548,2966.7,2965.4,0.00353288]
[1769134818563,0.82436658,2966.6,2965.4,0.00353288]
[1769134818771,1.32310548,2966.7,2965.4,0.00353288]
[1769134818961,0.82436668,2966.6,2965.4,0.00353288]
[1769134819167,1.32310548,2966.7,2965.4,0.00353288]
[1769134820569,0.82406966,2966.6,2965.4,0.00353288]
[1769134820768,1.32310548,2966.7,2965.4,0.00353288]
[1769134828375,0.43240931,2966.7,2965.5,0.89069617]
[1769134832284,1.32310548,2966.7,2965.4,0.00353288]
[1769134834786,0.3985965,2966.6,2965.4,0.00353288]
[1769134844394,0.3985965,2966.6,2965.4,2.42026585]
[1769134844698,0.3985965,2966.6,2965.4,0.00353288]
[1769134845401,0.82749333,2966.5,2965.4,2.42026585]
[1769134845594,0.3985965,2966.6,2965.4,2.42026585]
[1769134845898,0.82749251,2966.5,2965.4,2.42026585]
[1769134846089,0.8274925,2966.4,2965.4,0.00353288]
[1769134846292,0.82754359,2966.3,2965.4,0.00353288]
[1769134846495,0.3985965,2966.6,2965.4,0.00353288]
[1769134846793,0.82754443,2966.5,2965.4,0.00353288]
[1769134846988,0.82754443,2966.4,2965.4,0.00353288]
[1769134847184,0.3985965,2966.6,2965.4,0.00353288]
[1769134847394,0.82759673,2966.5,2965.4,0.00353288]
[1769134847693,0.82759673,2966.4,2965.4,0.00353288]
[1769134847996,0.82759673,2966.3,2965.4,0.00353288]
[1769134848294,0.3985965,2966.6,2965.4,0.00353288]
[1769134848495,0.82769423,2966.5,2965.4,0.00353288]
[1769134848697,0.82769423,2966.4,2965.4,0.00353288]
[1769134848895,0.82769423,2966.3,2965.4,0.00353288]
[1769134849092,0.3985965,2966.6,2965.4,0.00353288]
[1769134849290,0.82768553,2966.5,2965.4,0.00353288]
[1769134849492,0.82768553,2966.4,2965.4,0.00353288]
[1769134849689,0.82768553,2966.3,2965.4,0.00353288]
[1769134849997,0.3985965,2966.6,2965.4,0.00353288]
[1769134850191,0.82768598,2966.5,2965.4,0.00353288]
[1769134850387,0.82768598,2966.4,2965.4,0.00353288]
[1769134850593,0.82768598,2966.3,2965.4,0.00353288]
[1769134850798,0.3985965,2966.6,2965.4,0.00353288]
[1769134850998,0.82769017,2966.5,2965.4,0.00353288]
[1769134851202,0.82769017,2966.4,2965.4,0.00353288]
[1769134851495,0.82769017,2966.3,2965.4,0.00353288]
[1769134851699,0.3985965,2966.6,2965.4,0.00353288]
[1769134851892,1.2262934,2966.5,2965.4,0.00353288]
[1769134852199,0.8276969,2966.4,2965.4,0.00353288]
[1769134852499,0.8276969,2966.3,2965.4,0.00353288]
[1769134852797,0.3985965,2966.5,2965.4,0.00353288]
[1769134852995,0.82770435,2966.4,2965.5,0.89069617]
[1769134853186,0.82770435,2966.3,2965.5,0.89069617]
[1769134853398,0.3985965,2966.5,2965.5,0.89069617]
[1769134853604,0.8277034,2966.4,2965.5,0.89069617]
[1769134853802,0.8277034,2966.3,2965.5,0.89069617]
[1769134853998,0.3985965,2966.5,2965.5,0.89069617]
[1769134854201,0.82770366,2966.4,2965.5,0.89069617]
[1769134854396,0.3985965,2966.5,2965.5,0.89069617]
[1769134854397,0.82770366,2966.3,2965.5,0.89069617]
[1769134854600,0.3985965,2966.5,2965.5,0.89069617]
[1769134854896,0.82771217,2966.4,2965.5,0.89069617]
[1769134855097,0.82771217,2966.3,2965.5,0.89069617]
[1769134855297,0.3985965,2966.5,2965.5,0.89069617]
[1769134855596,0.82771025,2966.4,2965.5,0.89069617]
[1769134855796,0.82771025,2966.3,2965.5,0.89069617]
[1769134855998,0.3985965,2966.5,2965.5,0.89069617]
[1769134856204,0.3985965,2966.5,2965.5,3.30742914]
[1769134856398,0.3985965,2966.5,2965.4,2.42026585]
[1769134856601,0.3985965,2966.5,2965.5,2.41673297]
[1769134858508,0.3985965,2966.5,2965.4,2.42026585]
[1769134858703,0.3985965,2966.5,2965.5,2.41673297]
[1769134864504,0.3985965,2966.5,2965.4,2.42026585]
[1769134864905,0.3985965,2966.5,2965.5,2.41673297]
[1769134866114,0.3985965,2966.5,2965.4,2.42026585]
[1769134873008,0.82787943,2966.4,2965.4,2.42026585]
[1769134873208,0.3985965,2966.5,2965.4,2.42026585]
[1769134873513,0.82783916,2966.4,2965.4,2.42026585]
[1769134873812,0.3985965,2966.5,2965.4,2.42026585]
[1769134879826,0.42400121,2966.9,2965.4,2.42026585]
[1769134880025,1.25031144,2966.8,2965.4,2.42026585]
[1769134880324,0.82631023,2966.7,2965.4,2.42026585]
[1769134880520,0.82631023,2966.6,2965.4,2.42026585]
[1769134880820,0.82631023,2966.5,2965.4,2.42026585]
[1769134881014,0.42400121,2966.8,2965.4,2.42026585]
[1769134881215,0.82631165,2966.7,2965.4,2.42026585]
[1769134881416,0.82631165,2966.6,2965.4,2.42026585]
[1769134881617,0.82631165,2966.5,2965.4,2.42026585]
[1769134881824,0.42400121,2966.8,2965.4,2.42026585]
[1769134882025,0.8263135,2966.7,2965.5,2.41673297]
[1769134882326,0.8263135,2966.6,2965.5,2.41673297]
[1769134882622,0.8263135,2966.5,2965.5,2.82996067]
[1769134882822,0.42400121,2966.8,2965.5,2.82996067]
[1769134883127,0.82626237,2966.7,2965.5,2.82996067]
[1769134883421,0.82626237,2966.6,2965.5,2.82996067]
[1769134883622,0.42400121,2966.8,2965.5,2.82996067]
[1769134883813,0.82622743,2966.7,2965.5,2.82996067]
[1769134884017,0.82622743,2966.6,2965.5,2.82996067]
[1769134884215,0.42400121,2966.8,2965.5,2.82996067]
[1769134884426,0.82619704,2966.7,2965.5,2.82996067]
[1769134884724,0.82619704,2966.6,2965.5,2.82996067]
[1769134885021,0.42400121,2966.8,2965.5,2.82996067]
[1769134885222,0.82619708,2966.7,2965.5,2.82996067]
[1769134885422,0.82619708,2966.6,2965.5,2.82996067]
[1769134885623,0.42400121,2966.8,2965.5,2.82996067]
[1769134885924,0.82617289,2966.7,2965.5,2.82996067]
[1769134886121,0.82617289,2966.6,2965.5,0.4132277]
[1769134886325,0.82617289,2966.5,2965.5,0.4132277]
[1769134886629,3.01366151,2967.2,2965.5,0.4132277]
[1769134886817,0.82613372,2967.1,2965.5,0.4132277]
[1769134887013,0.82613372,2967.0,2965.5,0.4132277]
[1769134887216,0.82613372,2966.9,2965.5,0.4132277]
[1769134887421,0.82613372,2966.8,2965.6,0.4132277]
[1769134887621,0.82613372,2966.7,2965.6,0.4132277]
[1769134887824,0.82613372,2966.6,2965.6,0.4132277]
[1769134888025,0.42400121,2967.1,2965.6,0.4132277]
[1769134888224,1.25000747,2967.0,2965.6,0.4132277]
[1769134888525,0.82600626,2966.9,2965.6,0.4132277]
[1769134888826,0.82600626,2966.8,2965.6,0.4132277]
[1769134889027,0.82600626,2966.7,2965.6,0.4132277]
[1769134889328,0.82600626,2966.6,2965.6,0.4132277]
[1769134889528,0.42400121,2967.0,2965.6,0.4132277]
[1769134889724,0.82580502,2966.9,2965.6,0.4132277]
[1769134890028,0.82580502,2966.8,2965.6,0.4132277]
[1769134890226,0.82580502,2966.7,2965.6,0.4132277]
[1769134890528,0.82580502,2966.6,2965.4,2.42026585]
[1769134890724,0.82580502,2966.5,2965.4,2.42026585]
[1769134890928,0.42400121,2967.0,2965.4,2.42026585]
[1769134891126,1.24976363,2966.9,2965.4,2.42026585]
[1769134891324,0.82576242,2966.8,2965.4,2.42026585]
[1769134891522,0.82576242,2966.7,2965.4,2.42026585]
[1769134891722,0.82576242,2966.6,2965.4,2.42026585]
[1769134891927,0.82576242,2966.5,2965.4,2.42026585]
[1769134892130,0.42400121,2966.9,2965.4,2.42026585]
[1769134892332,0.82572429,2966.8,2965.4,2.42026585]
[1769134892531,0.82572429,2966.7,2965.4,0.00353288]
[1769134892730,0.82572429,2966.6,2965.4,0.00353288]
[1769134893031,0.82572429,2966.5,2965.4,0.00353288]
[1769134893233,0.40800193,2966.8,2965.4,0.00353288]
[1769134893441,0.82572924,2966.7,2965.4,0.00353288]
[1769134893640,0.82572924,2966.6,2965.4,0.00353288]
[1769134893836,0.82572924,2966.5,2965.4,0.00353288]
[1769134894038,0.40800193,2966.8,2965.4,0.00353288]
[1769134894239,0.82572751,2966.7,2965.4,0.00353288]
[1769134894440,0.82572751,2966.6,2965.4,0.00353288]
[1769134894638,0.82572751,2966.5,2965.4,0.00353288]
[1769134894843,0.40800193,2966.8,2965.4,0.00353288]
[1769134895040,0.82572069,2966.7,2965.4,0.00353288]
[1769134895239,0.82572069,2966.6,2965.4,0.00353288]
[1769134895440,0.82572069,2966.5,2965.4,0.00353288]
[1769134895744,0.40800193,2966.8,2965.4,0.00353288]
[1769134895939,0.82571451,2966.7,2965.4,0.00353288]
[1769134896134,0.40800193,2966.8,2965.5,2.41673297]
[1769134896341,0.82571067,2966.7,2965.5,2.41673297]
[1769134896641,0.40800193,2966.8,2965.5,2.41673297]
[1769134896838,1.23371607,2966.7,2965.5,2.41673297]
[1769134897043,1.23375718,2966.6,2965.4,2.42026585]
[1769134897240,0.40800193,2966.6,2965.5,2.41673297]
[1769134899252,0.40800193,2966.6,2965.4,2.42026585]
[1769134900643,0.8257783,2966.5,2965.4,2.42026585]
[1769134900836,0.40800193,2966.6,2965.4,2.42026585]
[1769134901045,0.40800193,2966.4,2965.4,2.42026585]
[1769134901641,0.40800193,2966.4,2965.4,0.00353288]
[1769134901842,0.40800193,2966.2,2965.4,0.00353288]
[1769134902847,0.40800193,2966.0,2964.8,3.28645701]
[1769134903038,1.23374442,2965.9,2964.8,0.86972404]
[1769134903246,0.40800193,2965.9,2964.8,0.86972404]
[1769134903446,0.00505817,2965.6,2964.8,0.86972404]
[1769134903741,0.00505817,2965.6,2964.8,0.87302037]
[1769134903742,0.0090111,2965.6,2964.8,0.87302037]
[1769134906348,0.0090111,2965.6,2964.8,1.2704965]
[1769134906848,0.0090111,2965.6,2964.8,0.87302037]
[1769134913447,0.0090111,2965.6,2964.8,0.00329633]
[1769134914352,0.0090111,2965.6,2964.8,0.40077246]
[1769134917948,0.0090111,2965.6,2964.8,0.00329633]
[1769134932359,0.0090111,2965.6,2964.8,2.4200293]
[1769134932554,0.41443871,2965.4,2964.5,2.41673297]
[1769134932754,0.41443871,2965.4,2964.3,2.41673297]
[1769134933555,0.41443871,2965.4,2964.3,2.42067543]
[1769134934360,0.41443871,2965.4,2964.3,0.00394246]
[1769134936165,0.82875778,2965.3,2964.3,0.00394246]
[1769134936464,0.0090111,2965.6,2964.3,0.42149981]
[1769134936663,0.0090111,2965.6,2964.5,0.41755735]
[1769134943573,0.0090111,2965.6,2964.4,0.89117834]
[1769134943774,0.90018944,2965.6,2964.3,2.42067543]
[1769134943963,0.8285985,2965.5,2964.3,2.42067543]
[1769134944165,1.31462815,2965.6,2964.3,2.42067543]
[1769134944666,0.82859569,2965.5,2964.3,0.00394246]
[1769134944976,1.31462815,2965.6,2964.3,0.00394246]
[1769134945266,1.24304002,2965.5,2964.3,0.00394246]
[1769134945471,0.41443871,2965.5,2964.3,0.00394246]
[1769134946171,0.41443871,2965.5,2964.3,2.42067543]
[1769134947272,0.41443871,2965.5,2964.3,0.00394246]
[1769134953575,0.89117834,2965.3,2964.3,0.00394246]
[1769134953769,1.3320645,2965.3,2964.3,0.00394246]
[1769134955474,0.44088616,2965.3,2964.3,0.00394246]
[1769134959376,0.0090111,2965.6,2964.4,0.89117834]
[1769134959572,0.82877887,2965.5,2964.4,0.89117834]
[1769134959777,0.0090111,2965.6,2964.7,0.89117834]
[1769134960876,2.42234461,2966.5,2964.7,0.89117834]
[1769134960877,0.44088616,2966.5,2965.0,1.30974707]
[1769134961176,0.82864431,2966.4,2965.0,3.72648004]
[1769134961376,0.82864431,2966.3,2965.0,3.72648004]
[1769134961576,0.44088616,2966.5,2965.3,0.89117834]
[1769134961772,0.82826212,2966.4,2965.3,0.89117834]
[1769134961968,0.82826212,2966.3,2965.3,0.89117834]
[1769134962172,0.00368548,2966.4,2965.3,0.89117834]
[1769134962374,0.82823046,2966.3,2965.3,0.89117834]
[1769134962570,0.00368548,2966.4,2965.3,0.89117834]
[1769134964071,1.26883844,2966.3,2964.9,2.41673297]
[1769134964274,0.00505817,2966.1,2964.9,2.41673297]
[1769134964475,0.44594433,2966.1,2964.9,2.41673297]
[1769134964874,0.44088616,2966.0,2964.8,2.41673297]
[1769134965471,0.44088616,2965.7,2964.5,7.61673297]
[1769134965671,0.44088616,2965.7,2964.5,2.41673297]
[1769134966278,0.44088616,2965.7,2964.4,3.30791131]
[1769134968776,1.33712267,2966.1,2964.7,0.89117834]
[1769134968972,1.2686591,2966.0,2964.7,0.89117834]
[1769134969277,0.82777294,2965.9,2964.7,0.89117834]
[1769134969478,0.44088616,2966.0,2964.7,0.89117834]
[1769134969778,0.82775818,2965.9,2964.7,0.89117834]
[1769134969976,0.44088616,2966.0,2964.7,0.89117834]
[1769134970172,0.82775897,2965.9,2964.7,0.89117834]
[1769134970371,0.44088616,2966.0,2964.7,0.89117834]
[1769134970571,0.82774164,2965.9,2964.7,0.89117834]
[1769134970870,0.44088616,2966.0,2964.7,0.89117834]
[1769134971068,0.8277416,2965.9,2964.7,0.89117834]
[1769134971271,0.44088616,2966.0,2964.7,0.89117834]
[1769134971479,0.82772843,2965.9,2964.7,0.89117834]
[1769134971681,0.44088616,2966.0,2964.7,0.89117834]
[1769134971980,0.82773716,2965.9,2964.7,0.89117834]
[1769134972277,0.88212267,2966.1,2964.7,0.89117834]
[1769134972478,0.82772588,2966.0,2964.7,0.89117834]
[1769134972681,0.82772588,2965.9,2964.7,0.89117834]
[1769134972878,0.88212267,2966.1,2964.7,0.89117834]
[1769134973079,0.82772067,2966.0,2964.7,0.89117834]
[1769134973280,0.82772067,2965.9,2964.7,0.89117834]
[1769134973584,0.88212267,2966.1,2964.7,0.89117834]
[1769134973782,0.8277092,2966.0,2964.7,0.89117834]
[1769134973983,0.8277092,2965.9,2964.7,0.89117834]
[1769134974183,1.32300883,2966.1,2964.7,0.89117834]
[1769134974380,0.82770561,2966.0,2964.7,0.89117834]
[1769134974681,0.82770561,2965.9,2964.7,0.89117834]
[1769134974880,1.71892194,2965.8,2964.4,1.30974707]
[1769134975080,0.89117834,2965.8,2964.4,1.30974707]
[1769134976184,0.44088616,2965.9,2964.5,2.41673297]
[1769134976480,0.44088616,2965.9,2964.5,2.8353017]
[1769134976779,0.89117834,2966.1,2964.7,1.30974707]
[1769134976985,0.82774311,2966.0,2964.7,1.30974707]
[1769134977187,0.89117834,2966.1,2964.7,1.30974707]
[1769134977385,0.82774652,2966.0,2964.7,1.30974707]
[1769134977684,0.89117834,2966.1,2964.7,1.30974707]
[1769134977885,0.82777385,2966.0,2964.7,1.30974707]
[1769134978085,0.89117834,2966.1,2964.7,1.30974707]
[1769134978285,0.82777389,2966.0,2964.7,1.30974707]
[1769134978586,0.89117834,2966.1,2964.7,1.30974707]
[1769134978785,0.82779706,2966.0,2964.7,1.30974707]
[1769134979085,0.89117834,2966.1,2964.7,1.30974707]
[1769134979285,0.82779419,2966.0,2964.7,1.30974707]
[1769134979485,0.89117834,2966.1,2964.7,1.30974707]
[1769134979690,0.82782868,2966.0,2964.7,1.30974707]
[1769134979882,0.89117834,2966.1,2964.7,1.30974707]
[1769134980084,0.82782951,2966.0,2964.7,1.30974707]
[1769134980294,1.3320645,2966.1,2964.7,1.30974707]
[1769134980478,0.82782936,2966.0,2964.7,1.30974707]
[1769134980782,1.3320645,2966.1,2964.7,1.30974707]
[1769134980978,0.8278344,2966.0,2964.7,1.30974707]
[1769134981182,1.3320645,2966.1,2964.7,1.30974707]
[1769134981384,0.82787547,2966.0,2964.7,1.30974707]
[1769134981584,1.3320645,2966.1,2964.7,1.30974707]
[1769134981784,0.44231797,2965.9,2964.5,2.41673297]
[1769134983187,0.44231797,2965.9,2964.5,2.88018468]
[1769134986096,0.828245,2965.8,2964.5,0.46345171]
[1769134986296,0.44231797,2965.9,2964.5,0.46345171]
[1769134986497,0.8283227,2965.8,2964.5,0.46345171]
[1769134986697,0.44231797,2965.9,2964.5,0.46345171]
[1769134986899,0.82832271,2965.8,2964.5,0.46345171]
[1769134987105,0.44231797,2965.9,2964.5,0.46345171]
[1769134987295,0.82835321,2965.8,2964.5,0.46345171]
[1769134987601,0.82835321,2965.7,2964.5,0.46345171]
[1769134987792,0.44231797,2965.9,2964.5,0.46345171]
[1769134987993,0.82845069,2965.8,2964.7,0.89117834]
[1769134988207,0.44231797,2965.9,2964.7,0.89117834]
[1769134988404,0.82843245,2965.8,2964.7,0.89117834]
[1769134988600,0.44231797,2965.9,2964.7,0.89117834]
[1769134988801,0.82853996,2965.8,2965.0,0.00505817]
[1769134989004,0.89117834,2966.1,2965.0,0.00505817]
[1769134989202,0.82856167,2966.0,2965.0,0.00505817]
[1769134989405,0.82856167,2965.9,2965.0,0.00505817]
[1769134989605,0.82856167,2965.8,2965.0,0.00505817]
[1769134989805,0.89117834,2965.8,2965.0,0.00505817]
[1769134990006,0.82861661,2965.7,2965.0,0.00505817]
[1769134990206,0.89117834,2965.8,2965.0,0.00505817]
[1769134990412,0.82914285,2965.7,2965.0,0.00505817]
[1769134990706,0.89117834,2965.8,2965.0,0.00505817]
[1769134990903,0.82913718,2965.7,2965.0,0.00505817]
[1769134991102,0.89117834,2965.8,2965.0,0.00505817]
[1769134991304,0.82913965,2965.7,2965.0,0.00505817]
[1769134991507,0.82913965,2965.6,2965.0,0.00505817]
[1769134991703,0.89117834,2965.8,2965.0,0.00505817]
[1769134991904,0.00505817,2965.6,2964.5,0.46345171]
[1769134994404,0.82943115,2965.5,2964.5,0.46345171]
[1769134994707,0.00505817,2965.6,2964.5,0.46345171]
[1769134994909,0.82930593,2965.5,2964.5,0.46345171]
[1769134995105,0.00505817,2965.6,2964.5,0.46345171]
[1769134995311,0.82928475,2965.5,2964.5,0.46345171]
[1769134995611,0.00505817,2965.6,2964.5,0.46345171]
[1769134995812,0.8295077,2965.5,2964.5,0.46345171]
[1769134996012,0.00505817,2965.6,2964.5,0.46345171]
[1769134996213,0.00505817,2965.6,2964.6,2.41673297]
[1769134998507,1.38990418,2965.5,2964.5,2.41673297]
[1769134998713,1.38990418,2965.5,2964.3,2.42067543]
[1769135000017,0.83828393,2965.4,2964.3,2.42067543]
[1769135000315,1.38990418,2965.5,2964.3,2.42067543]
[1769135001008,0.49872584,2965.5,2964.3,2.42067543]
[1769135001307,0.49872584,2965.5,2964.3,0.00394246]
[1769135003314,0.00505817,2965.6,2964.3,0.50672613]
[1769135003518,0.83781987,2965.5,2964.3,0.50672613]
[1769135003816,0.00505817,2965.6,2964.3,0.50672613]
[1769135004017,0.83783897,2965.5,2964.3,0.50672613]
[1769135004215,0.00505817,2965.6,2964.3,0.50672613]
[1769135004417,0.83787169,2965.5,2964.3,0.50672613]
[1769135004716,0.00505817,2965.6,2964.3,0.50672613]
[1769135004920,0.83791913,2965.5,2964.3,0.50672613]
[1769135005216,0.00505817,2965.6,2964.3,0.50672613]
[1769135005416,0.83790708,2965.5,2964.3,0.50672613]
[1769135005715,0.00505817,2965.6,2964.3,0.50672613]
[1769135005913,0.83792531,2965.5,2964.3,0.50672613]
[1769135006114,0.00505817,2965.6,2964.3,0.50672613]
[1769135006314,0.00505817,2965.6,2964.3,2.9234591]
[1769135006714,0.00505817,2965.6,2964.4,0.50278367]
[1769135010228,0.83790505,2965.5,2964.4,0.50278367]
[1769135010416,0.00505817,2965.6,2964.4,0.50278367]
[1769135010617,0.83791629,2965.5,2964.4,0.50278367]
[1769135010817,0.00505817,2965.6,2964.4,0.50278367]
[1769135011021,0.83796469,2965.5,2964.4,0.50278367]
[1769135011319,0.00505817,2965.6,2964.4,0.50278367]
[1769135011522,0.83749159,2965.5,2964.4,0.50278367]
[1769135011715,0.00505817,2965.6,2964.4,0.50278367]
[1769135011909,0.83733029,2965.5,2964.4,0.50278367]
[1769135012120,0.00505817,2965.6,2964.4,0.50278367]
[1769135012318,0.83730257,2965.5,2964.4,0.50278367]
[1769135012518,0.83730257,2965.5,2964.3,0.00394246]
[1769135012519,0.60732118,2965.3,2964.3,0.00394246]
[1769135012718,0.60732118,2965.1,2964.3,0.00394246]
[1769135012920,1.44478157,2965.0,2963.6,3.07337644]
[1769135013119,0.60732118,2965.0,2963.6,3.07337644]
[1769135014022,0.60732118,2965.0,2963.6,3.07729507]
[1769135014218,0.60732118,2965.0,2963.6,0.6605621]
[1769135024036,1.44572628,2964.9,2963.6,0.6605621]
[1769135024337,0.60732118,2964.9,2963.6,0.6605621]
[1769135025536,0.83832299,2964.8,2963.6,0.6605621]
[1769135025738,0.60732118,2964.9,2963.6,0.6605621]
[1769135025933,1.44564185,2964.8,2963.6,0.00391863]
[1769135026136,0.60732118,2964.7,2963.6,0.00391863]
[1769135028345,0.60732118,2964.5,2963.6,0.00391863]
[1769135031848,0.60732118,2964.9,2963.6,0.00391863]
[1769135032051,1.44517547,2964.8,2963.6,0.00391863]
[1769135032241,0.83785429,2964.7,2963.6,0.00391863]
[1769135032544,0.83785429,2964.6,2963.6,0.00391863]
[1769135032747,0.60732118,2964.7,2963.6,0.00391863]
[1769135033047,0.83781846,2964.6,2963.6,0.00391863]
[1769135033244,0.60732118,2964.7,2963.6,0.00391863]
[1769135033449,0.83780732,2964.6,2963.6,0.00391863]
[1769135033744,0.60732118,2964.7,2963.6,0.00391863]
[1769135033937,0.83779301,2964.6,2963.6,0.00391863]
[1769135034135,0.60732118,2964.7,2963.6,0.00391863]
[1769135034342,0.83780491,2964.6,2963.6,0.00391863]
[1769135034544,0.60732118,2964.7,2963.6,0.00391863]
[1769135034743,0.83780705,2964.6,2963.6,0.00391863]
[1769135034948,0.60732118,2964.7,2963.6,0.00391863]
[1769135035145,0.83780711,2964.6,2963.6,0.00391863]
[1769135035344,0.83780711,2964.5,2963.6,0.00391863]
[1769135035645,0.60732118,2964.5,2963.6,0.00391863]
[1769135038046,1.49874645,2964.0,2962.6,2.41673297]
[1769135038246,0.60732118,2963.9,2962.4,3.07337644]
[1769135038444,0.60732118,2963.9,2962.5,0.65664347]
[1769135038640,0.00505817,2963.4,2962.5,0.65664347]
[1769135038952,0.00843886,2963.4,2962.5,0.65912574]
[1769135039355,0.00843886,2963.4,2962.5,6.65912574]
[1769135040156,0.00843886,2963.4,2962.6,0.65664347]
[1769135042056,0.60732118,2964.3,2962.8,0.73956912]
[1769135042356,0.83678413,2964.2,2962.8,0.73956912]
[1769135042554,0.83678413,2964.1,2962.8,0.73956912]
[1769135042859,0.89142527,2964.5,2962.8,0.73956912]
[1769135043158,0.83662945,2964.4,2962.8,0.73956912]
[1769135043358,0.71248547,2964.2,2962.7,0.00505817]
[1769135043653,0.71248547,2964.0,2962.7,0.00505817]
[1769135047755,0.78999112,2963.8,2962.7,0.00505817]
[1769135048852,0.78999112,2964.3,2962.7,0.80029769]
[1769135049052,0.83631297,2964.2,2962.7,0.80029769]
[1769135049255,0.83631297,2964.1,2962.7,0.80029769]
[1769135049460,0.83631297,2964.0,2962.7,0.80029769]
[1769135049658,0.83628802,2963.9,2962.7,0.80029769]
[1769135049852,0.78999112,2964.1,2962.7,0.80029769]
[1769135050165,0.83628259,2964.0,2962.7,0.80029769]
[1769135050356,0.83628259,2963.9,2962.7,0.80029769]
[1769135050557,0.78999112,2964.0,2962.7,0.80029769]
[1769135050757,0.83628817,2963.9,2962.7,0.80029769]
[1769135051058,0.78999112,2964.0,2962.7,0.80029769]
[1769135051261,1.62631565,2963.9,2962.7,0.00505817]
[1769135051458,0.78999112,2963.9,2962.7,0.00505817]
[1769135052960,0.78999112,2963.7,2962.7,0.00505817]
[1769135056361,0.83692931,2963.6,2962.7,0.00505817]
[1769135056560,0.78999112,2963.7,2962.7,0.00505817]
[1769135056760,0.83692983,2963.6,2962.7,0.00505817]
[1769135056961,0.78999112,2963.7,2962.7,0.00505817]
[1769135057162,0.83724316,2963.6,2962.7,0.00505817]
[1769135057462,0.78999112,2963.7,2962.7,0.00505817]
[1769135057767,0.83732607,2963.6,2962.7,0.00505817]
[1769135057963,0.78999112,2963.7,2962.7,0.00505817]
[1769135058161,0.8373253,2963.6,2962.7,0.00505817]
[1769135058361,0.78999112,2964.3,2962.7,0.00505817]
[1769135058561,1.62747889,2964.2,2962.7,0.80029769]
[1769135058761,0.83748777,2964.1,2962.7,0.80029769]
[1769135059862,1.62747889,2964.1,2962.7,0.80029769]
[1769135060065,0.83748777,2964.0,2962.7,0.80029769]
[1769135060867,0.89234138,2963.9,2962.7,0.80029769]
[1769135062265,0.83817131,2963.8,2962.7,0.80029769]
[1769135062464,0.89234138,2963.9,2962.7,0.80029769]
[1769135062766,0.83826951,2963.8,2962.7,0.80029769]
[1769135062962,0.89234138,2963.9,2962.7,0.80029769]
[1769135063161,0.83834548,2963.8,2962.7,0.80029769]
[1769135063361,0.89234138,2963.9,2962.7,0.80029769]
[1769135063561,0.83852355,2963.8,2962.7,0.80029769]
[1769135063858,0.89234138,2963.9,2962.7,0.80029769]
[1769135064058,0.83857964,2963.8,2962.7,0.80029769]
[1769135064261,0.89234138,2963.9,2962.7,0.80029769]
[1769135064463,0.83877069,2963.8,2962.7,0.80029769]
[1769135064669,0.89234138,2963.9,2962.7,0.00505817]
[1769135064966,0.83877562,2963.8,2962.7,0.00505817]
[1769135065167,1.6823325,2963.9,2962.7,0.00505817]
[1769135065362,0.83900648,2963.8,2962.7,0.00505817]
[1769135065562,1.6823325,2963.9,2962.7,0.00505817]
[1769135065762,0.83900621,2963.8,2962.7,0.00505817]
[1769135065964,1.6823325,2963.9,2962.7,0.00505817]
[1769135066168,0.83900574,2963.8,2962.7,0.00505817]
[1769135066368,0.83900574,2963.7,2962.7,0.00505817]
[1769135066568,1.6823325,2963.9,2962.7,0.00505817]
[1769135066768,0.8392467,2963.8,2962.7,0.00505817]
[1769135066968,0.8392467,2963.7,2962.7,0.00505817]
[1769135067169,1.6823325,2963.9,2962.7,0.00505817]
[1769135067369,0.83953251,2963.8,2962.7,0.00505817]
[1769135067674,0.00505817,2963.5,2962.7,0.00505817]
[1769135075077,0.89234138,2963.4,2962.7,0.00505817]
[1769135076673,0.00505817,2963.5,2962.7,0.00505817]
[1769135096897,0.00505817,2963.5,2962.7,0.89739955]
[1769135097101,0.00505817,2963.5,2962.7,1.70219994]
[1769135097502,0.00505817,2963.5,2962.7,0.80985856]
[1769135104301,0.89739955,2963.5,2962.7,0.00505817]
[1769135105901,0.00505817,2963.5,2962.7,0.00505817]
[1769135112211,1.75695399,2963.5,2962.7,0.00505817]
[1769135116321,0.00505817,2963.5,2962.7,0.00505817]
[1769135124718,0.86461261,2963.5,2962.5,2.41921524]
[1769135124917,0.85955444,2963.1,2962.1,2.41673297]
[1769135125116,0.85955444,2963.1,2962.0,2.41673297]
[1769135126022,0.85955444,2963.1,2962.0,2.41980455]
[1769135126321,0.85955444,2963.1,2962.0,0.00307158]
[1769135127017,0.84863371,2963.0,2962.0,0.00307158]
[1769135127218,0.85955444,2963.1,2962.0,0.00307158]
[1769135127522,0.84837328,2963.0,2962.0,0.00307158]
[1769135127827,0.85955444,2963.1,2962.0,0.00307158]